Workbook

Sheet Times
A1: Level | B1: Time | D1: Layer times | F1: Layer | G1: ="Restarts: "&COUNT(G$2:G$1048576) -> Restarts: 1
A2: (0-1) | B2: 9.599 | F2: Wrath | G2: 1.531 | K2: Created By B.G.B.
A3: (0-2) | B3: 11.37 | K3: How to use:
A4: (0-S) | K4: https://youtu.be/sCqH-S7OVUk
A5: (0-3) | B5: 9.232 | D5: Prelude
A6: (0-4) | B6: 9.992 | D6: =Maths!G13 -> 51.337
A7: (0-5) | B7: 11.144
A8: (1-1) | B8: 15.353 | D8: Act 1
A9: (1-S) | D9: =Maths!G72 -> 231.409
A10: (1-2) | B10: 12.84
A11: (1-3) | B11: 9.688 | D11: Limbo
A12: (1-4) | B12: 9.648 | D12: =Maths!G19 -> 47.529
A13: (2-1) | B13: 13.121
A14: (2-2) | B14: 29.191
A15: (2-3) | B15: 8.168 | D15: Lust
A16: (2-S) | D16: =Maths!G25 -> 114.071
A17: (2-4) | B17: 23.591
A18: (3-1) | B18: 16.273 | D18: Gluttony
A19: (P-1) | D19: =Maths!G31 -> 29.809
A20: (3-2) | B20: 13.536
A21: (4-1) | B21: 11.025 | D21: Act 2
A22: (4-2) | B22: 32.326 | D22: =Maths!G77 -> 313.838
A23: (4-S)
A24: (4-3) | B24: 15.528 | D24: Greed
A25: (4-4) | B25: 24.607 | D25: =Maths!G37 -> 123.486
A26: (5-1) | B26: 15.765
A27: (5-S)
A28: (5-2) | B28: 23.46 | D28: Wrath
A29: (5-3) | B29: 24.655 | D29: =Maths!G43 -> 115.281
A30: (5-4) | B30: 9.87
A31: (6-1) | B31: 28.558 | D31: Heresy
A32: (6-2) | B32: 6.513 | D32: =Maths!G49 -> 35.071
A33: (P-2)
A34: (7-1) | B34: 125.559 | D34: Act 3
A35: (7-2) | B35: 30.39 | D35: =Maths!G82 -> 249.312
A36: (7-3) | B36: 35.356
A37: (7-S) | D37: Violence
A38: (7-4) | B38: 18.007 | D38: =Maths!G55 -> 249.312
A39: (8-1)
A40: (8-)
A41: (8-) | D41: Fraud
A42: (8-) | D42: =Maths!G61 -> 0
A43: (8-)
A44: (9-1) | D44: Treachery
A45: (9-) | D45: =Maths!G67 -> 0
A46: (9-)
A47: IGT | B47: =IF(Maths!G7<10000,Maths!G7,SUBSTITUTE(TEXT(Maths!G7,"0X00X00.000"),"X",":")) -> 925.896

Sheet Maths
A1: Layer | B1: Time | C1: Min | D1: Sec | F1: Time | G1: Min | H1: Sec | I1: Sec | J1: Min | K1: Sec
A2: Prelude | B2: =Times!B2 -> 9.599 | C2: =QUOTIENT(B2, 100) -> 0 | D2: =B2-(C2*100)+(C2*60) -> 9.599 | F2: =Times!I2 -> 0 | G2: =QUOTIENT(F2, 100) -> 0 | H2: =F2-G2*100 -> 0 | I2: =((G2*60)+H2)-((G3*60)+H3) -> 0 | J2: =QUOTIENT(I2, 60) -> 0 | K2: =MOD(I2,60) -> 0
A3: Prelude | B3: =Times!B3 -> 11.37 | C3: 0 | D3: 11.37 | F3: =Times!I3 -> 0 | G3: =QUOTIENT(F3, 100) -> 0 | H3: =F3-G3*100 -> 0 | J3: =J2*100+K2 -> 0
A4: Prelude | B4: =Times!B4 -> 0 | C4: 0 | D4: 0
A5: Prelude | B5: =Times!B5 -> 9.232 | C5: 0 | D5: 9.232
A6: Prelude | B6: =Times!B6 -> 9.992 | C6: 0 | D6: 9.992
A7: Prelude | B7: =Times!B7 -> 11.144 | C7: 0 | D7: 11.144 | F7: FullGame | G7: =F10*10000+G10*100+H10 -> 925.896 | J7: Layers:
A8: Limbo | B8: =Times!B8 -> 15.353 | C8: =QUOTIENT(B8, 100) -> 0 | D8: =B8-(C8*100)+(C8*60) -> 15.353 | F8: hour | G8: min | H8: total sec | J8: Prelude
A9: Limbo | B9: =Times!B9 -> 0 | C9: 0 | D9: 0 | H9: =SUM(D:D) -> 565.896 | J9: Limbo
A10: Limbo | B10: =Times!B10 -> 12.84 | C10: 0 | D10: 12.84 | F10: =QUOTIENT(QUOTIENT(H9, 60), 60) -> 0 | G10: =MOD(QUOTIENT(H9, 60), 60) -> 9 | H10: =MOD(H9,60) -> 25.896 | J10: Lust
A11: Limbo | B11: =Times!B11 -> 9.688 | C11: 0 | D11: 9.688 | J11: Gluttony
A12: Limbo | B12: =Times!B12 -> 9.648 | C12: 0 | D12: =B12-(C12*100)+(C12*60) -> 9.648 | J12: Greed
A13: Lust | B13: =Times!B13 -> 13.121 | C13: 0 | D13: 13.121 | F13: Prelude | G13: =F16*100+G16 -> 51.337 | J13: Wrath
A14: Lust | B14: =Times!B14 -> 29.191 | C14: 0 | D14: 29.191 | F14: min | G14: total sec | J14: Heresy
A15: Lust | B15: =Times!B15 -> 8.168 | C15: 0 | D15: 8.168 | G15: =SUMIF(A:A, J8, D:D)+SUMIF(A:A, J18, D:D) -> 51.337 | J15: Violence
A16: Lust | B16: =Times!B16 -> 0 | C16: 0 | D16: 0 | F16: =QUOTIENT(G15, 60) -> 0 | G16: =MOD(G15,60) -> 51.337 | J16: Fraud
A17: Lust | B17: =Times!B17 -> 23.591 | C17: 0 | D17: 23.591 | J17: Treachery
A18: Gluttony | B18: =Times!B18 -> 16.273 | C18: 0 | D18: 16.273 | J18: 0
A19: Gluttony | B19: =Times!B19 -> 0 | C19: 0 | D19: 0 | F19: Limbo | G19: =F22*100+G22 -> 47.529 | J19: 1
A20: Gluttony | B20: =Times!B20 -> 13.536 | C20: 0 | D20: 13.536 | F20: min | G20: total sec | J20: 2
A21: Greed | B21: =Times!B21 -> 11.025 | C21: 0 | D21: 11.025 | G21: =SUMIF(A:A, J9, D:D)+SUMIF(A:A, J19, D:D) -> 47.529 | J21: 3
A22: Greed | B22: =Times!B22 -> 32.326 | C22: 0 | D22: 32.326 | F22: =QUOTIENT(G21, 60) -> 0 | G22: =MOD(G21,60) -> 47.529 | J22: 4
A23: Greed | B23: =Times!B23 -> 0 | C23: 0 | D23: 0 | J23: 5
A24: Greed | B24: =Times!B24 -> 15.528 | C24: 0 | D24: 15.528 | J24: 6
A25: Greed | B25: =Times!B25 -> 24.607 | C25: 0 | D25: 24.607 | F25: Lust | G25: =F28*100+G28 -> 114.071 | J25: 7
A26: Wrath | B26: =Times!B26 -> 15.765 | C26: 0 | D26: 15.765 | F26: min | G26: total sec | J26: 8
A27: Wrath | B27: =Times!B27 -> 0 | C27: 0 | D27: 0 | G27: =SUMIF(A:A, J10, D:D)+SUMIF(A:A, J20, D:D) -> 74.071 | J27: 9
A28: Wrath | B28: =Times!B28 -> 23.46 | C28: 0 | D28: 23.46 | F28: =QUOTIENT(G27, 60) -> 1 | G28: =MOD(G27,60) -> 14.071
A29: Wrath | B29: =Times!B29 -> 24.655 | C29: 0 | D29: 24.655
A30: Wrath | B30: =Times!B30 -> 9.87 | C30: 0 | D30: 9.87
A31: Heresy | B31: =Times!B31 -> 28.558 | C31: 0 | D31: 28.558 | F31: Gluttony | G31: =F34*100+G34 -> 29.809
A32: Heresy | B32: =Times!B32 -> 6.513 | C32: 0 | D32: 6.513 | F32: min | G32: total sec
A33: Heresy | B33: =Times!B33 -> 0 | C33: 0 | D33: 0 | G33: =SUMIF(A:A, J11, D:D)+SUMIF(A:A, J21, D:D) -> 29.809
A34: Violence | B34: =Times!B34 -> 125.559 | C34: =QUOTIENT(B34, 100) -> 1 | D34: 85.559 | F34: =QUOTIENT(G33, 60) -> 0 | G34: =MOD(G33,60) -> 29.809
A35: Violence | B35: =Times!B35 -> 30.39 | C35: =QUOTIENT(B35, 100) -> 0 | D35: 30.39
A36: Violence | B36: =Times!B36 -> 35.356 | C36: 0 | D36: 35.356
A37: Violence | B37: =Times!B37 -> 0 | C37: 0 | D37: 0 | F37: Greed | G37: =F40*100+G40 -> 123.486
A38: Violence | B38: =Times!B38 -> 18.007 | C38: 0 | D38: 18.007 | F38: min | G38: total sec
A39: Fraud | B39: =Times!B39 -> 0 | C39: 0 | D39: 0 | G39: =SUMIF(A:A, J12, D:D)+SUMIF(A:A, J22, D:D) -> 83.486
A40: Fraud | B40: =Times!B40 -> 0 | C40: 0 | D40: 0 | F40: =QUOTIENT(G39, 60) -> 1 | G40: =MOD(G39,60) -> 23.486
A41: Fraud | B41: =Times!B41 -> 0 | C41: 0 | D41: 0
A42: Fraud | B42: =Times!B42 -> 0 | C42: 0 | D42: 0
A43: Fraud | B43: =Times!B43 -> 0 | C43: 0 | D43: 0 | F43: Wrath | G43: =F46*100+G46 -> 115.281
A44: Treachery | B44: =Times!B44 -> 0 | C44: 0 | D44: 0 | F44: min | G44: total sec
A45: Treachery | B45: =Times!B45 -> 0 | C45: 0 | D45: 0 | G45: =SUMIF(A:A, J13, D:D)+SUMIF(A:A, J23, D:D) -> 75.281
A46: Treachery | B46: =Times!B46 -> 0 | C46: 0 | D46: 0 | F46: =QUOTIENT(G45, 60) -> 1 | G46: =MOD(G45,60) -> 15.281
A47: =IF(Times!F2="", ".", Times!F2) -> Wrath | B47: =Times!G2 -> 1.531 | C47: 0 | D47: =B47-(C47*100)+(C47*60) -> 1.531
A48: =IF(Times!F3="", ".", Times!F3) -> . | B48: =Times!G3 -> 0 | C48: 0 | D48: 0
A49: =IF(Times!F4="", ".", Times!F4) -> . | B49: =Times!G4 -> 0 | C49: 0 | D49: 0 | F49: Heresy | G49: =F52*100+G52 -> 35.071
A50: =IF(Times!F5="", ".", Times!F5) -> . | B50: =Times!G5 -> 0 | C50: 0 | D50: 0 | F50: min | G50: total sec
A51: =IF(Times!F6="", ".", Times!F6) -> . | B51: =Times!G6 -> 0 | C51: 0 | D51: 0 | G51: =SUMIF(A:A, J14, D:D)+SUMIF(A:A, J24, D:D) -> 35.071
A52: =IF(Times!F7="", ".", Times!F7) -> . | B52: =Times!G7 -> 0 | C52: 0 | D52: 0 | F52: =QUOTIENT(G51, 60) -> 0 | G52: =MOD(G51,60) -> 35.071
A53: =IF(Times!F8="", ".", Times!F8) -> . | B53: =Times!G8 -> 0 | C53: 0 | D53: 0
A54: =IF(Times!F9="", ".", Times!F9) -> . | B54: =Times!G9 -> 0 | C54: 0 | D54: 0
A55: =IF(Times!F10="", ".", Times!F10) -> . | B55: =Times!G10 -> 0 | C55: 0 | D55: 0 | F55: Violence | G55: =F58*100+G58 -> 249.312
A56: =IF(Times!F11="", ".", Times!F11) -> . | B56: =Times!G11 -> 0 | C56: 0 | D56: 0 | F56: min | G56: total sec
A57: =IF(Times!F12="", ".", Times!F12) -> . | B57: =Times!G12 -> 0 | C57: 0 | D57: 0 | G57: =SUMIF(A:A, J15, D:D)+SUMIF(A:A, J25, D:D) -> 169.312
A58: =IF(Times!F13="", ".", Times!F13) -> . | B58: =Times!G13 -> 0 | C58: 0 | D58: 0 | F58: =QUOTIENT(G57, 60) -> 2 | G58: =MOD(G57,60) -> 49.312
A59: =IF(Times!F14="", ".", Times!F14) -> . | B59: =Times!G14 -> 0 | C59: 0 | D59: 0
A60: =IF(Times!F15="", ".", Times!F15) -> . | B60: =Times!G15 -> 0 | C60: 0 | D60: 0
A61: =IF(Times!F16="", ".", Times!F16) -> . | B61: =Times!G16 -> 0 | C61: 0 | D61: 0 | F61: Fraud | G61: =F64*100+G64 -> 0
A62: =IF(Times!F17="", ".", Times!F17) -> . | B62: =Times!G17 -> 0 | C62: 0 | D62: 0 | F62: min | G62: total sec
A63: =IF(Times!F18="", ".", Times!F18) -> . | B63: =Times!G18 -> 0 | C63: 0 | D63: 0 | G63: =SUMIF(A:A, J16, D:D)+SUMIF(A:A, J26, D:D) -> 0
A64: =IF(Times!F19="", ".", Times!F19) -> . | B64: =Times!G19 -> 0 | C64: 0 | D64: 0 | F64: =QUOTIENT(G63, 60) -> 0 | G64: =MOD(G63,60) -> 0
A65: =IF(Times!F20="", ".", Times!F20) -> . | B65: =Times!G20 -> 0 | C65: 0 | D65: 0
A66: =IF(Times!F21="", ".", Times!F21) -> . | B66: =Times!G21 -> 0 | C66: =QUOTIENT(B66, 100) -> 0 | D66: 0
A67: =IF(Times!F22="", ".", Times!F22) -> . | B67: =Times!G22 -> 0 | C67: =QUOTIENT(B67, 100) -> 0 | D67: 0 | F67: Treachery | G67: =F70*100+G70 -> 0
A68: =IF(Times!F23="", ".", Times!F23) -> . | B68: =Times!G23 -> 0 | C68: 0 | D68: 0 | F68: min | G68: total sec
A69: =IF(Times!F24="", ".", Times!F24) -> . | B69: =Times!G24 -> 0 | C69: 0 | D69: 0 | G69: =SUMIF(A:A, J17, D:D)+SUMIF(A:A, J27, D:D) -> 0
A70: =IF(Times!F25="", ".", Times!F25) -> . | B70: =Times!G25 -> 0 | C70: 0 | D70: 0 | F70: =QUOTIENT(G69, 60) -> 0 | G70: =MOD(G69,60) -> 0
A71: =IF(Times!F26="", ".", Times!F26) -> . | B71: =Times!G26 -> 0 | C71: 0 | D71: 0
A72: =IF(Times!F27="", ".", Times!F27) -> . | B72: =Times!G27 -> 0 | C72: 0 | D72: 0 | F72: Act 1 | G72: =F75*100+G75 -> 231.409
A73: =IF(Times!F28="", ".", Times!F28) -> . | B73: =Times!G28 -> 0 | C73: 0 | D73: 0 | F73: min | G73: total sec
A74: =IF(Times!F29="", ".", Times!F29) -> . | B74: =Times!G29 -> 0 | C74: 0 | D74: 0 | G74: =G21+G27+G33 -> 151.409
A75: =IF(Times!F30="", ".", Times!F30) -> . | B75: =Times!G30 -> 0 | C75: 0 | D75: 0 | F75: =QUOTIENT(G74, 60) -> 2 | G75: =MOD(G74,60) -> 31.409
A76: =IF(Times!F31="", ".", Times!F31) -> . | B76: =Times!G31 -> 0 | C76: 0 | D76: =B76-(C76*100)+(C76*60) -> 0
A77: =IF(Times!F32="", ".", Times!F32) -> . | B77: =Times!G32 -> 0 | C77: 0 | D77: 0 | F77: Act 2 | G77: =F80*100+G80 -> 313.838
A78: =IF(Times!F33="", ".", Times!F33) -> . | B78: =Times!G33 -> 0 | C78: 0 | D78: 0 | F78: min | G78: total sec
A79: =IF(Times!F34="", ".", Times!F34) -> . | B79: =Times!G34 -> 0 | C79: 0 | D79: 0 | G79: =G39+G45+G51 -> 193.838
A80: =IF(Times!F35="", ".", Times!F35) -> . | B80: =Times!G35 -> 0 | C80: 0 | D80: 0 | F80: =QUOTIENT(G79, 60) -> 3 | G80: =MOD(G79,60) -> 13.838
A81: =IF(Times!F36="", ".", Times!F36) -> . | B81: =Times!G36 -> 0 | C81: 0 | D81: 0
A82: =IF(Times!F37="", ".", Times!F37) -> . | B82: =Times!G37 -> 0 | C82: 0 | D82: 0 | F82: Act 3 | G82: =F85*100+G85 -> 249.312
A83: =IF(Times!F38="", ".", Times!F38) -> . | B83: =Times!G38 -> 0 | C83: 0 | D83: 0 | F83: min | G83: total sec
A84: =IF(Times!F39="", ".", Times!F39) -> . | B84: =Times!G39 -> 0 | C84: 0 | D84: 0 | G84: =G57+G63+G69 -> 169.312
A85: =IF(Times!F40="", ".", Times!F40) -> . | B85: =Times!G40 -> 0 | C85: 0 | D85: 0 | F85: =QUOTIENT(G84, 60) -> 2 | G85: =MOD(G84,60) -> 49.312
A86: =IF(Times!F41="", ".", Times!F41) -> . | B86: =Times!G41 -> 0 | C86: 0 | D86: 0
A87: =IF(Times!F42="", ".", Times!F42) -> . | B87: =Times!G42 -> 0 | C87: 0 | D87: 0
A88: =IF(Times!F43="", ".", Times!F43) -> . | B88: =Times!G43 -> 0 | C88: 0 | D88: 0
A89: =IF(Times!F44="", ".", Times!F44) -> . | B89: =Times!G44 -> 0 | C89: 0 | D89: 0
A90: =IF(Times!F45="", ".", Times!F45) -> . | B90: =Times!G45 -> 0 | C90: 0 | D90: 0
A91: =IF(Times!F46="", ".", Times!F46) -> . | B91: =Times!G46 -> 0 | C91: 0 | D91: 0
A92: =IF(Times!F47="", ".", Times!F47) -> . | B92: =Times!G47 -> 0 | C92: 0 | D92: 0
A93: =IF(Times!F48="", ".", Times!F48) -> . | B93: =Times!G48 -> 0 | C93: 0 | D93: 0
A94: =IF(Times!F49="", ".", Times!F49) -> . | B94: =Times!G49 -> 0 | C94: 0 | D94: 0
A95: =IF(Times!F50="", ".", Times!F50) -> . | B95: =Times!G50 -> 0 | C95: 0 | D95: 0
A96: =IF(Times!F51="", ".", Times!F51) -> . | B96: =Times!G51 -> 0 | C96: 0 | D96: 0
A97: =IF(Times!F52="", ".", Times!F52) -> . | B97: =Times!G52 -> 0 | C97: 0 | D97: 0
A98: =IF(Times!F53="", ".", Times!F53) -> . | B98: =Times!G53 -> 0 | C98: 0 | D98: 0
A99: =IF(Times!F54="", ".", Times!F54) -> . | B99: =Times!G54 -> 0 | C99: 0 | D99: 0
A100: =IF(Times!F55="", ".", Times!F55) -> . | B100: =Times!G55 -> 0 | C100: 0 | D100: 0
A101: =IF(Times!F56="", ".", Times!F56) -> . | B101: =Times!G56 -> 0 | C101: 0 | D101: 0
A102: =IF(Times!F57="", ".", Times!F57) -> . | B102: =Times!G57 -> 0 | C102: 0 | D102: 0
A103: =IF(Times!F58="", ".", Times!F58) -> . | B103: =Times!G58 -> 0 | C103: 0 | D103: 0
A104: =IF(Times!F59="", ".", Times!F59) -> . | B104: =Times!G59 -> 0 | C104: 0 | D104: 0
A105: =IF(Times!F60="", ".", Times!F60) -> . | B105: =Times!G60 -> 0 | C105: 0 | D105: 0
A106: =IF(Times!F61="", ".", Times!F61) -> . | B106: =Times!G61 -> 0 | C106: 0 | D106: 0
A107: =IF(Times!F62="", ".", Times!F62) -> . | B107: =Times!G62 -> 0 | C107: 0 | D107: 0
A108: =IF(Times!F63="", ".", Times!F63) -> . | B108: =Times!G63 -> 0 | C108: 0 | D108: 0
A109: =IF(Times!F64="", ".", Times!F64) -> . | B109: =Times!G64 -> 0 | C109: 0 | D109: 0
A110: =IF(Times!F65="", ".", Times!F65) -> . | B110: =Times!G65 -> 0 | C110: 0 | D110: 0
A111: =IF(Times!F66="", ".", Times!F66) -> . | B111: =Times!G66 -> 0 | C111: 0 | D111: 0
A112: =IF(Times!F67="", ".", Times!F67) -> . | B112: =Times!G67 -> 0 | C112: 0 | D112: 0
A113: =IF(Times!F68="", ".", Times!F68) -> . | B113: =Times!G68 -> 0 | C113: 0 | D113: 0
A114: =IF(Times!F69="", ".", Times!F69) -> . | B114: =Times!G69 -> 0 | C114: 0 | D114: 0
A115: =IF(Times!F70="", ".", Times!F70) -> . | B115: =Times!G70 -> 0 | C115: 0 | D115: 0
A116: =IF(Times!F71="", ".", Times!F71) -> . | B116: =Times!G71 -> 0 | C116: 0 | D116: 0
A117: =IF(Times!F72="", ".", Times!F72) -> . | B117: =Times!G72 -> 0 | C117: 0 | D117: 0
A118: =IF(Times!F73="", ".", Times!F73) -> . | B118: =Times!G73 -> 0 | C118: 0 | D118: 0
A119: =IF(Times!F74="", ".", Times!F74) -> . | B119: =Times!G74 -> 0 | C119: 0 | D119: 0
A120: =IF(Times!F75="", ".", Times!F75) -> . | B120: =Times!G75 -> 0 | C120: 0 | D120: 0
